bitfinex/quotes_BTCUSD_20240803
["timestamp","ask_amount","ask_price","bid_price","bid_amount"]
[1722686220913,2.59958524,61974.0,61973.0,0.009988]
[1722686221317,2.62758524,61974.0,61973.0,0.009988]
[1722686221722,2.59958524,61974.0,61973.0,0.009988]
[1722686221895,2.61358524,61974.0,61973.0,0.009988]
[1722686222101,2.62758524,61974.0,61973.0,0.009988]
[1722686222746,2.60458524,61974.0,61973.0,0.085688]
[1722686223168,2.60458524,61974.0,61973.0,0.085648]
[1722686224163,2.59058524,61974.0,61973.0,0.085648]
[1722686224768,2.60458524,61974.0,61973.0,0.085648]
[1722686226164,1.65745924,61974.0,61973.0,0.271968]
[1722686226388,1.65745924,61974.0,61973.0,0.150948]
[1722686226389,2.02051324,61974.0,61973.0,0.150948]
[1722686227008,2.00651324,61974.0,61973.0,0.150948]
[1722686227235,2.02051324,61974.0,61973.0,0.150948]
[1722686227437,2.26254924,61974.0,61973.0,0.150948]
[1722686227645,2.24854924,61974.0,61973.0,0.150948]
[1722686228260,2.23454924,61974.0,61973.0,0.150948]
[1722686228466,2.47658524,61974.0,61973.0,0.150948]
[1722686228706,2.49058524,61974.0,61973.0,0.150948]
[1722686228865,2.48858524,61974.0,61973.0,0.150948]
[1722686229263,2.50258524,61974.0,61973.0,0.150948]
[1722686229487,2.24654924,61974.0,61973.0,0.150948]
[1722686230253,2.23454924,61974.0,61973.0,0.150948]
[1722686230455,2.24854924,61974.0,61973.0,0.150948]
[1722686230664,2.24854924,61974.0,61973.0,0.009948]
[1722686230665,2.59058524,61974.0,61973.0,0.009948]
[1722686230869,2.57658524,61974.0,61973.0,0.009948]
[1722686231277,2.59058524,61974.0,61973.0,0.009948]
[1722686231487,2.60458524,61974.0,61973.0,0.009948]
[1722686236701,2.66924024,61974.0,61973.0,0.009948]
[1722686237127,2.42720424,61974.0,61973.0,0.089748]
[1722686237553,2.42720424,61974.0,61973.0,0.151348]
[1722686240856,2.42600424,61974.0,61973.0,0.151348]
[1722686241144,2.18396824,61974.0,61973.0,0.151348]
[1722686244813,1.65625924,61974.0,61973.0,0.151348]
[1722686245596,1.65625924,61974.0,61973.0,0.16700442]
[1722686245801,1.77727724,61974.0,61973.0,0.16700442]
[1722686246001,1.77727724,61974.0,61973.0,0.151348]
[1722686246328,1.65625924,61974.0,61973.0,0.151348]
[1722686247286,1.77727724,61974.0,61973.0,0.151348]
[1722686248031,1.65625924,61974.0,61973.0,0.151348]
[1722686248168,1.77727724,61974.0,61973.0,0.151348]
[1722686248366,2.01931324,61974.0,61973.0,0.151348]
[1722686248571,1.65625924,61974.0,61973.0,0.151348]
[1722686248800,1.65625924,61974.0,61973.0,0.16700442]
[1722686250437,1.65625924,61974.0,61973.0,0.28802442]
[1722686250639,1.65625924,61974.0,61973.0,0.16700442]
[1722686251266,1.65625924,61974.0,61973.0,0.28802442]
[1722686251267,1.64225924,61974.0,61973.0,0.28802442]
[1722686251437,1.64225924,61974.0,61973.0,0.16700442]
[1722686251640,1.64925924,61974.0,61973.0,0.16700442]
[1722686252255,1.26725924,61974.0,61973.0,1.09289636]
[1722686252454,0.007,61974.0,61973.0,1.23701613]
[1722686252654,0.007,61974.0,61973.0,1.22701613]
[1722686252655,0.021,61974.0,61973.0,1.22701613]
[1722686252925,0.021,61974.0,61973.0,1.01030636]
[1722686252926,0.17845924,61974.0,61973.0,1.01030636]
[1722686253087,0.16445924,61974.0,61973.0,0.96212419]
[1722686253630,0.17045924,61974.0,61973.0,0.82800442]
[1722686253759,0.16445924,61974.0,61973.0,0.82800442]
[1722686254160,0.16545924,61974.0,61973.0,0.82800442]
[1722686254562,0.15845924,61974.0,61973.0,0.82800442]
[1722686254782,0.15845924,61974.0,61973.0,0.83100442]
[1722686255354,0.15845924,61974.0,61973.0,0.82800442]
[1722686255610,0.15745924,61974.0,61973.0,0.82800442]
[1722686255819,0.15745924,61974.0,61973.0,0.82900442]
[1722686257555,0.15745924,61974.0,61973.0,1.08104442]
[1722686257754,0.15745924,61974.0,61973.0,0.82900442]
[1722686259190,0.15745924,61974.0,61973.0,1.07104442]
[1722686259387,0.15745924,61974.0,61973.0,0.82900442]
[1722686259843,0.15745924,61974.0,61973.0,0.96310932]
[1722686259982,0.15745924,61974.0,61973.0,0.97310932]
[1722686260181,0.15745924,61974.0,61973.0,1.21514932]
[1722686261299,0.15745924,61974.0,61973.0,1.21514258]
[1722686262573,0.736,61984.0,61983.0,0.363001]
[1722686262780,0.89345924,61984.0,61983.0,0.799202]
[1722686263043,0.89345924,61984.0,61983.0,0.81478542]
[1722686263252,0.89345924,61984.0,61983.0,1.05678642]
[1722686263662,0.89345924,61984.0,61983.0,0.81478542]
[1722686264927,0.91645924,61984.0,61983.0,0.81478542]
[1722686265660,0.89345924,61984.0,61983.0,0.81478542]
[1722686265873,0.89945924,61984.0,61983.0,0.81478542]
[1722686266072,0.90645924,61984.0,61983.0,0.81478542]
[1722686268981,0.90645924,61984.0,61983.0,0.78978542]
[1722686269550,0.90645924,61984.0,61983.0,0.73388542]
[1722686272889,0.90645924,61984.0,61983.0,0.49188442]
[1722686275185,0.90645924,61984.0,61983.0,0.24988342]
[1722686275394,0.90645924,61984.0,61983.0,0.49188442]
[1722686276256,0.90645924,61984.0,61983.0,0.24988342]
[1722686276387,0.90645924,61984.0,61983.0,0.49188442]
[1722686277745,0.90645924,61984.0,61983.0,0.01558342]
[1722686277746,1.08895724,61984.0,61983.0,0.01558342]
[1722686277951,0.90645924,61984.0,61983.0,0.01558342]
[1722686278193,0.90645924,61984.0,61980.0,0.121005]
[1722686278391,0.15745924,61983.0,61978.0,0.198309]
[1722686278622,0.15745924,61983.0,61981.0,0.01554292]
[1722686278739,0.15745924,61983.0,61979.0,0.121007]
[1722686279136,0.15745924,61983.0,61981.0,0.00157439]
[1722686279336,0.27846024,61983.0,61981.0,0.00157439]
[1722686279540,0.27846024,61983.0,61978.0,0.0773]
[1722686279541,0.16345924,61983.0,61979.0,0.121008]
[1722686279788,0.16345924,61983.0,61980.0,0.00157439]
[1722686279989,0.16345924,61983.0,61980.0,0.02486912]
[1722686280235,0.28446024,61983.0,61979.0,0.00157439]
[1722686280351,0.28446024,61983.0,61979.0,0.121008]
[1722686280557,0.28446024,61983.0,61980.0,0.02487286]
[1722686280756,0.15745924,61983.0,61980.0,0.02487286]
[1722686280960,0.15745924,61983.0,61978.0,0.0773]
[1722686281168,0.28945924,61983.0,61979.0,0.121008]
[1722686281369,0.28945924,61983.0,61980.0,0.00157439]
[1722686281620,0.28345924,61983.0,61979.0,0.121008]
[1722686281796,0.28445924,61983.0,61979.0,0.121008]
[1722686281995,0.28445924,61983.0,61980.0,0.02487286]
[1722686282207,0.29445924,61983.0,61980.0,0.02487286]
[1722686282403,0.30545924,61983.0,61980.0,0.02487286]
[1722686282597,0.30545924,61983.0,61979.0,0.121008]
[1722686282598,0.30545924,61983.0,61981.0,0.0248724]
[1722686282828,0.29945924,61983.0,61981.0,0.0248724]
[1722686283025,0.28845924,61983.0,61979.0,0.121008]
[1722686283253,0.28845924,61983.0,61978.0,0.0773]
[1722686283254,0.16745924,61983.0,61980.0,0.14587886]
[1722686283648,0.15745924,61983.0,61980.0,0.14587886]
[1722686284003,0.16245924,61983.0,61980.0,0.14587886]
[1722686284198,0.16845924,61983.0,61980.0,0.14587886]
[1722686284399,0.28446024,61983.0,61980.0,0.02487286]
[1722686284643,0.28446024,61983.0,61979.0,0.121008]
[1722686284851,0.29546024,61983.0,61980.0,0.02487286]
[1722686285048,0.29546024,61983.0,61979.0,0.121008]
[1722686285289,0.29546024,61983.0,61980.0,0.0248989]
[1722686285524,0.18445924,61983.0,61980.0,0.0248989]
[1722686285800,0.121003,61982.0,61978.0,0.0773]
[1722686285995,0.121003,61982.0,61981.0,0.02489845]
[1722686286211,0.121003,61982.0,61978.0,0.0773]
[1722686286443,0.121003,61982.0,61981.0,0.02489845]
[1722686286675,0.021,61983.0,61979.0,0.00157439]
[1722686286676,0.011,61983.0,61979.0,0.00157439]
[1722686286895,0.011,61983.0,61978.0,0.19831]
[1722686287177,0.121004,61981.0,61980.0,0.0248989]
[1722686287390,0.121006,61980.0,61979.0,0.02489936]
[1722686287618,0.121006,61980.0,61978.0,0.0773]
[1722686287619,0.121008,61979.0,61978.0,0.0773]
[1722686287776,0.27846724,61979.0,61978.0,0.0773]
[1722686287986,0.27846724,61979.0,61978.0,0.10219981]
[1722686288564,0.15745924,61979.0,61978.0,0.10219981]
[1722686288789,0.27846724,61979.0,61978.0,0.10219981]
[1722686288969,0.16845924,61979.0,61978.0,0.10219981]
[1722686289166,0.15745924,61979.0,61978.0,0.10219981]
[1722686290157,0.52048424,61979.0,61978.0,0.10219981]
[1722686290368,0.29046724,61979.0,61978.0,0.10219981]
[1722686290813,0.29146724,61979.0,61978.0,0.10219981]
[1722686291168,0.16845924,61979.0,61978.0,0.10219981]
[1722686291372,0.18045924,61979.0,61978.0,0.10219981]
[1722686292995,0.18045924,61979.0,61978.0,0.36236175]
[1722686293205,0.18045924,61979.0,61978.0,0.60438275]
[1722686293808,0.18045924,61979.0,61978.0,0.84640375]
[1722686294013,0.16945924,61979.0,61978.0,0.60438275]
[1722686294419,0.16345924,61979.0,61978.0,0.60438275]
[1722686294844,0.16445924,61979.0,61978.0,0.60438275]
[1722686295194,0.15745924,61979.0,61978.0,0.60438275]
[1722686295395,0.16345924,61979.0,61978.0,0.60438275]
[1722686296279,0.16645924,61979.0,61978.0,0.60438275]
[1722686296634,0.16345924,61979.0,61978.0,0.60438275]
[1722686297228,0.16845924,61979.0,61978.0,0.60438275]
[1722686297836,0.17445924,61979.0,61978.0,0.60438275]
[1722686298826,0.17445924,61979.0,61978.0,0.28360981]
[1722686299019,0.17445924,61979.0,61978.0,0.10219981]
[1722686300091,0.17445924,61979.0,61978.0,0.46523081]
[1722686301346,0.17445924,61979.0,61978.0,0.22320981]
[1722686302263,0.17445924,61979.0,61978.0,0.77015181]
[1722686305242,0.17445924,61979.0,61978.0,1.14627297]
[1722686306951,0.17445924,61979.0,61978.0,0.77015181]
[1722686307157,0.17445924,61979.0,61978.0,0.90424985]
[1722686307561,0.17445924,61979.0,61978.0,0.77015181]
[1722686307766,0.17445924,61979.0,61978.0,0.90424937]
[1722686309264,0.17445924,61979.0,61978.0,0.99300131]
[1722686309265,0.017,61979.0,61978.0,0.99300131]
[1722686309476,0.017,61979.0,61978.0,1.23502231]
[1722686309680,0.017,61979.0,61978.0,1.2833341]
[1722686309892,0.017,61979.0,61978.0,1.28332771]
[1722686310103,0.017,61979.0,61978.0,1.27332771]
[1722686310330,0.012,61979.0,61978.0,1.27332771]
[1722686310538,0.012,61979.0,61978.0,1.27432771]
[1722686310757,0.012,61979.0,61978.0,1.15023015]
[1722686310970,0.736,61984.0,61978.0,1.15023015]
[1722686310971,0.736,61984.0,61983.0,0.605002]
[1722686311221,0.89345924,61984.0,61983.0,0.800302]
[1722686311449,0.89345924,61984.0,61983.0,0.82520065]
[1722686311685,0.89345924,61984.0,61983.0,0.95928879]
[1722686312143,0.89345924,61984.0,61983.0,0.82520065]
[1722686312448,0.89745924,61984.0,61983.0,0.82520065]
[1722686313647,0.90345924,61984.0,61983.0,0.82520065]
[1722686319113,0.90345924,61984.0,61983.0,0.02489865]
[1722686319619,1.02445724,61984.0,61980.0,0.196806]
[1722686319863,0.15745924,61983.0,61981.0,0.12257839]
[1722686320090,0.15745924,61983.0,61982.0,0.121002]
[1722686320312,0.15745924,61983.0,61980.0,0.0758]
[1722686320533,0.15745924,61983.0,61981.0,0.121003]
[1722686321887,0.15745924,61983.0,61980.0,0.0758]
[1722686322101,0.15745924,61983.0,61981.0,0.121003]
[1722686322310,0.15745924,61983.0,61980.0,0.0758]
[1722686322522,0.15745924,61983.0,61981.0,0.12257839]
[1722686322730,0.15745924,61983.0,61981.0,0.121004]
[1722686322936,0.16045924,61983.0,61981.0,0.121004]
[1722686323322,0.16445924,61983.0,61982.0,0.14626037]
[1722686324372,0.16045924,61983.0,61982.0,0.14626037]
[1722686324701,0.16445924,61983.0,61982.0,0.14626037]
[1722686325559,0.16145924,61983.0,61982.0,0.14626037]
[1722686325760,0.16445924,61983.0,61982.0,0.14626037]
[1722686327284,0.16445924,61983.0,61982.0,0.38826537]
[1722686327493,0.16445924,61983.0,61982.0,0.22646037]
[1722686330843,0.16445924,61983.0,61982.0,0.46846537]
[1722686331071,0.16445924,61983.0,61982.0,0.52976537]
[1722686331488,0.16445924,61983.0,61982.0,0.14626037]
[1722686331658,0.16445924,61983.0,61982.0,0.38826537]
[1722686332046,0.16445924,61983.0,61982.0,0.14626037]
[1722686332253,0.06445924,61983.0,61982.0,0.38826537]
[1722686333558,0.06445924,61983.0,61982.0,0.77177037]
[1722686335223,0.007,61983.0,61982.0,1.14786745]
[1722686335836,0.007,61983.0,61982.0,1.14786057]
[1722686336531,0.007,61983.0,61982.0,1.40186557]
[1722686336839,0.007,61983.0,61982.0,1.54486557]
[1722686336980,0.007,61983.0,61982.0,1.61189856]
[1722686337188,0.007,61983.0,61982.0,1.54486557]
[1722686337734,0.004,61983.0,61982.0,1.54486557]
[1722686338048,0.005,61983.0,61982.0,1.61589392]
[1722686338255,0.005,61983.0,61982.0,1.54886557]
[1722686338831,0.001,61983.0,61982.0,1.54886557]
[1722686339292,0.002,61983.0,61982.0,1.55286557]
[1722686339675,0.001,61983.0,61982.0,1.548839]
[1722686339868,0.001,61983.0,61982.0,1.55845858]
[1722686340106,0.002,61983.0,61982.0,1.56245814]
[1722686340731,0.002,61983.0,61982.0,1.80446314]
[1722686342701,0.002,61983.0,61982.0,1.87149174]
[1722686342908,0.061,62013.0,61998.0,0.0664]
[1722686343111,0.55795924,62012.0,62010.0,0.120947]
[1722686343317,0.55795924,62012.0,62011.0,0.120946]
[1722686343922,0.55795924,62012.0,62011.0,0.14600357]
[1722686344359,0.55795924,62012.0,62011.0,0.02505757]
[1722686344842,0.57195924,62012.0,62011.0,0.02505757]
[1722686345047,0.55795924,62012.0,62011.0,0.14600357]
[1722686345246,0.55795924,62012.0,62011.0,0.120946]
[1722686345473,0.56895924,62012.0,62011.0,0.120946]
[1722686346291,0.58295924,62012.0,62011.0,0.120946]
[1722686346737,0.56895924,62012.0,62011.0,0.120946]
[1722686346937,0.57995924,62012.0,62011.0,0.121946]
[1722686347341,0.57995924,62012.0,62011.0,0.001]
[1722686348382,0.57995924,62012.0,62011.0,0.121946]
[1722686348587,0.57995924,62012.0,62011.0,0.60573]
[1722686348999,0.57995924,62012.0,62011.0,0.6307682]
[1722686349415,0.57995924,62012.0,62011.0,0.8726602]
[1722686349622,0.57995924,62012.0,62011.0,1.0207602]
[1722686352524,0.57995924,62012.0,62011.0,0.7788682]
[1722686352747,0.57995924,62012.0,62011.0,0.7124682]
[1722686355732,0.58078924,62012.0,62011.0,0.7124682]
[1722686356444,0.58078924,62012.0,62011.0,0.1469842]
[1722686356445,0.69548924,62012.0,62011.0,0.1469842]
[1722686356671,0.69548924,62012.0,62011.0,0.121946]
[1722686356877,0.69548924,62012.0,62011.0,0.363838]
[1722686357104,0.69548924,62012.0,62011.0,0.38881106]
[1722686357512,0.69548924,62012.0,62011.0,0.02597306]
[1722686357728,0.69548924,62012.0,62011.0,0.121946]
[1722686357953,0.69548924,62012.0,62011.0,0.001]
[1722686358392,0.81643324,62012.0,62011.0,0.001]
[1722686359252,1.05832124,62012.0,62011.0,0.001]
[1722686359843,0.81643324,62012.0,62011.0,0.001]
[1722686360294,0.69548924,62012.0,62011.0,0.001]
[1722686361410,0.81643324,62012.0,62011.0,0.001]
[1722686366000,0.76563324,62012.0,62011.0,0.001]
[1722686368995,0.76563324,62012.0,62011.0,0.101]
[1722686369273,0.70173324,62012.0,62011.0,0.101]
[1722686369446,1.18550924,62012.0,62011.0,0.101]
[1722686369617,0.94362124,62012.0,62011.0,0.101]
[1722686370073,0.70173324,62012.0,62011.0,0.101]
[1722686371279,0.94362124,62012.0,62011.0,0.101]
[1722686385031,1.24810924,62012.0,62011.0,0.101]
[1722686385230,1.29890924,62012.0,62011.0,0.101]
[1722686386158,1.24810924,62012.0,62011.0,0.101]
[1722686386360,1.18550924,62012.0,62011.0,0.101]
[1722686386859,0.94362124,62012.0,62011.0,0.101]
[1722686388433,1.00224489,62012.0,62011.0,0.101]
[1722686388946,0.94362124,62012.0,62011.0,0.101]
[1722686391058,0.94362124,62012.0,62011.0,0.041]
[1722686394467,1.18550924,62012.0,62011.0,0.041]
[1722686401094,1.24392429,62012.0,62011.0,0.041]
[1722686401324,0.94362124,62012.0,62011.0,0.041]
[1722686401526,1.00203627,62012.0,62011.0,0.041]
[1722686401680,1.00203566,62012.0,62011.0,0.041]
[1722686402069,1.00203579,62012.0,62011.0,0.041]
[1722686402294,0.76014779,62012.0,62011.0,0.1036]
[1722686402704,0.58078924,62012.0,62011.0,0.2381]
[1722686403312,0.58078924,62012.0,62011.0,0.359046]
[1722686403487,0.58078924,62012.0,62011.0,0.600938]
[1722686403717,0.58078924,62012.0,62011.0,0.359046]
[1722686403893,0.58078924,62012.0,62011.0,0.600938]
[1722686404475,0.58078924,62012.0,62011.0,0.359046]
[1722686405271,0.58078924,62012.0,62011.0,0.1822]
[1722686405480,0.58078924,62012.0,62011.0,0.303146]
[1722686407047,0.58078924,62012.0,62011.0,0.545038]
[1722686407231,0.58078924,62012.0,62011.0,0.303146]
[1722686407824,0.58078924,62012.0,62011.0,0.545038]
[1722686408844,0.58078924,62012.0,62011.0,0.303146]
[1722686409038,0.58078924,62012.0,62011.0,0.545038]
[1722686409268,0.58078924,62012.0,62011.0,0.78693]
[1722686409522,0.42333,62012.0,62011.0,0.78693]
[1722686411457,0.42333,62012.0,62011.0,1.028822]
[1722686411664,0.42333,62012.0,62011.0,1.16285026]
[1722686411880,0.02283,62012.0,62011.0,1.23546424]
[1722686412090,0.02283,62012.0,62011.0,1.2796689]
[1722686412305,0.02283,62012.0,62011.0,1.27945981]
[1722686412739,0.01183,62012.0,62011.0,1.27945981]
[1722686412952,0.01183,62012.0,62011.0,1.14543155]
[1722686413159,0.01483,62012.0,62011.0,1.26944144]
[1722686413392,0.00383,62012.0,62011.0,0.75148038]
[1722686413591,0.17228924,62012.0,62011.0,0.303146]
[1722686413789,0.17228924,62012.0,62011.0,0.545038]
[1722686413993,0.17228924,62012.0,62011.0,0.1822]
[1722686414215,0.28223324,62012.0,62011.0,0.041]
[1722686414429,0.28223324,62012.0,62011.0,0.044]
[1722686414430,0.52412124,62012.0,62011.0,0.044]
[1722686414903,0.52412124,62012.0,62011.0,0.041]
[1722686415112,0.76600924,62012.0,62011.0,0.041]
[1722686415312,0.52812124,62012.0,62011.0,0.041]
[1722686415517,0.52512124,62012.0,62011.0,0.041]
[1722686415716,0.76700924,62012.0,62011.0,0.041]
[1722686416134,0.52512124,62012.0,62011.0,0.045]
[1722686416338,0.28323324,62012.0,62011.0,0.045]
[1722686416751,0.52512124,62012.0,62011.0,0.041]
[1722686416967,0.28323324,62012.0,62011.0,0.041]
[1722686417706,0.16228924,62012.0,62011.0,0.041]
[1722686417915,0.16228924,62012.0,62011.0,0.07421205]
[1722686418389,0.16528924,62012.0,62011.0,0.07421205]
[1722686419031,0.16528924,62012.0,62011.0,0.19515805]
[1722686419443,0.16528924,62012.0,62011.0,0.07421205]
[1722686419912,0.16528924,62012.0,62011.0,0.17421205]
[1722686422499,0.16528924,62012.0,62011.0,0.17512505]
[1722686423108,0.16478924,62012.0,62011.0,0.17512505]
[1722686423305,0.28573324,62012.0,62011.0,0.17512505]
[1722686423526,0.16478924,62012.0,62011.0,0.17512505]
[1722686423959,0.28573324,62012.0,62011.0,0.17512505]
[1722686424289,0.28573324,62012.0,62011.0,0.141913]
[1722686424290,0.52762124,62012.0,62011.0,0.141913]
[1722686424492,0.83580924,62012.0,62011.0,0.141913]
[1722686425288,0.83180924,62012.0,62011.0,0.141913]
[1722686425491,0.82880924,62012.0,62011.0,0.141913]
[1722686426111,0.83880924,62012.0,62011.0,0.141913]
[1722686427214,0.84980924,62012.0,62011.0,0.141913]
[1722686427613,0.78350924,62012.0,62011.0,0.141913]
[1722686428702,1.02539724,62012.0,62011.0,0.141913]
[1722686428914,1.29707372,62012.0,62011.0,0.141913]
[1722686429090,1.53896172,62012.0,62011.0,0.141913]
[1722686429921,1.52796172,62012.0,62011.0,0.141913]
[1722686430127,1.54196172,62012.0,62011.0,0.141913]
[1722686430754,1.5270921,62012.0,62011.0,0.141913]
[1722686430962,1.5410921,62012.0,62011.0,0.141913]
[1722686431174,1.5640921,62012.0,62011.0,0.141913]
[1722686431392,1.5640921,62012.0,62011.0,0.10766594]
[1722686431393,2.79806282,62012.0,62011.0,0.10766594]
[1722686431594,1.8259801,62012.0,62011.0,0.10766594]
[1722686431794,1.97106282,62012.0,62011.0,0.10766594]
[1722686432003,3.21006282,62012.0,62011.0,0.10766594]
[1722686432236,3.19606282,62012.0,62011.0,0.10766594]
[1722686432454,3.0509801,62012.0,62011.0,0.10766594]
[1722686432663,3.06769074,62012.0,62011.0,0.10766594]
[1722686433083,3.05369074,62012.0,62011.0,0.10766594]
[1722686433288,3.21739226,62012.0,62011.0,0.10766594]
[1722686433694,3.21739226,62012.0,62011.0,0.08859567]
[1722686434121,3.21739226,62012.0,62011.0,0.01356481]
[1722686434336,3.21739226,62012.0,61994.0,0.00019417]
[1722686434337,0.906839,61995.0,61994.0,0.00019417]
[1722686434558,3.46179824,61995.0,61994.0,0.00019417]
[1722686434768,3.46179824,61995.0,61994.0,0.03351713]
[1722686434984,3.70375224,61995.0,61994.0,0.00019417]
[1722686435185,3.76356645,61995.0,61994.0,0.00019417]
[1722686435573,3.77656645,61995.0,61994.0,0.00019417]
[1722686435977,3.7770189,61995.0,61994.0,0.00019417]
[1722686436583,3.80056681,61995.0,61994.0,0.00019417]
[1722686436918,3.79056681,61995.0,61994.0,0.00019417]
[1722686437123,3.84136681,61995.0,61994.0,0.00019417]
[1722686437364,3.79155224,61995.0,61994.0,0.00019417]
[1722686437793,3.85137634,61995.0,61994.0,0.00019417]
[1722686438523,3.87437634,61995.0,61994.0,0.00019417]
[1722686439117,3.86437634,61995.0,61994.0,0.00019417]
[1722686439320,3.85037634,61995.0,61994.0,0.00019417]
[1722686439526,3.79155224,61995.0,61994.0,0.00019417]
[1722686439733,3.8652314,61995.0,61994.0,0.00019417]
[1722686440386,3.80555224,61995.0,61994.0,0.00019417]
[1722686441050,3.42979824,61995.0,61994.0,0.00019417]
[1722686441256,3.43932774,61995.0,61994.0,0.00019417]
[1722686442276,4.66432774,61995.0,61994.0,0.00019417]
[1722686444591,4.6626154,61995.0,61994.0,0.00019417]
[1722686445623,3.4376154,61995.0,61994.0,0.00019417]
[1722686449892,3.5615202,61995.0,61994.0,0.00019417]
[1722686450153,3.8034752,61995.0,61994.0,0.00019417]
[1722686450519,3.5615212,61995.0,61994.0,0.00019417]
[1722686450728,5.5225212,61995.0,61994.0,0.00019417]
[1722686451717,5.7644752,61995.0,61994.0,0.00019417]
[1722686452048,5.5225212,61995.0,61994.0,0.00019417]
[1722686452886,5.4581212,61995.0,61994.0,0.00019417]
[1722686453088,5.3986154,61995.0,61994.0,0.00019417]
[1722686453295,4.1736154,61995.0,61994.0,0.00019417]
[1722686453944,5.45873351,61995.0,61994.0,0.00019417]
[1722686454131,3.49773351,61995.0,61994.0,0.00019417]
[1722686454344,3.73968751,61995.0,61994.0,0.00019417]
[1722686454750,3.49773351,61995.0,61994.0,0.00019417]
[1722686454959,3.48373351,61995.0,61994.0,0.00019417]
[1722686455178,3.4236154,61995.0,61994.0,0.00019417]
[1722686455383,3.55392357,61995.0,61994.0,0.00019417]
[1722686455593,6.86792357,61995.0,61994.0,0.00019417]
[1722686455802,6.83992357,61995.0,61994.0,0.00019417]
[1722686456000,6.8075154,61995.0,61994.0,0.00019417]
[1722686456239,6.86802307,61995.0,61994.0,0.00019417]
[1722686456862,6.84002307,61995.0,61994.0,0.00019417]
[1722686457066,6.84002307,61995.0,61994.0,0.00110717]
[1722686457283,6.7935154,61995.0,61994.0,0.00110717]
[1722686457459,6.85483785,61995.0,61994.0,0.00110717]
[1722686457920,6.85483786,61995.0,61994.0,0.00110717]
[1722686458097,6.86883786,61995.0,61994.0,0.00110717]
[1722686458520,6.85483786,61995.0,61994.0,0.00110717]
[1722686459262,6.86883786,61995.0,61994.0,0.00110717]
[1722686459899,6.98353786,61995.0,61994.0,0.00110717]
[1722686460239,7.01653786,61995.0,61994.0,0.00110717]
[1722686460450,7.24849186,61995.0,61994.0,0.00110717]
[1722686461261,7.1979994,61995.0,61994.0,0.00110717]
[1722686461546,7.25814006,61995.0,61994.0,0.00110717]
[1722686462218,7.25814006,61995.0,61984.0,0.000913]
[1722686462219,0.846979,61985.0,61984.0,0.000913]
[1722686462449,1.0645789,61985.0,61984.0,0.000913]
[1722686462671,1.1645789,61985.0,61984.0,0.03445554]
[1722686462912,1.1645789,61985.0,61984.0,0.000913]
[1722686463395,1.16466402,61985.0,61984.0,0.000913]
[1722686463881,1.16466365,61985.0,61984.0,0.000913]
[1722686464700,1.17866365,61985.0,61984.0,0.000913]
[1722686464870,1.19266365,61985.0,61984.0,0.000913]
[1722686465537,1.17866365,61985.0,61984.0,0.000913]
[1722686465755,1.47065765,61985.0,61984.0,0.000913]
[1722686466069,1.49865765,61985.0,61984.0,0.000913]
[1722686467410,1.63845765,61985.0,61984.0,0.000913]
[1722686467878,1.57823224,61985.0,61984.0,0.000913]
[1722686468081,1.57479714,61985.0,61984.0,0.000913]
[1722686468499,1.43499714,61985.0,61984.0,0.000913]
[1722686469081,1.19300314,61985.0,61984.0,0.000913]
[1722686469462,1.20266962,61985.0,61984.0,0.000913]
[1722686471597,1.20208099,61985.0,61984.0,0.000913]
[1722686473173,1.58387499,61985.0,61984.0,0.000913]
[1722686473397,1.65787499,61985.0,61984.0,0.000913]
[1722686473601,1.67087499,61985.0,61984.0,0.000913]
[1722686474351,1.77761617,61985.0,61984.0,0.000913]
[1722686474533,1.79161617,61985.0,61984.0,0.000913]
[1722686474760,1.77761617,61985.0,61984.0,0.000913]
[1722686474969,1.76361617,61985.0,61984.0,0.000913]
[1722686475169,1.78761617,61985.0,61984.0,0.000913]
[1722686475402,1.78778671,61985.0,61984.0,0.000913]
[1722686475616,1.66687499,61985.0,61984.0,0.000913]
[1722686476042,1.66687499,61985.0,61969.0,0.009988]
[1722686476043,1.399162,61974.0,61969.0,0.009988]
[1722686476240,1.399162,61974.0,61959.0,0.065]
[1722686476241,0.121045,61960.0,61959.0,0.065]
[1722686476447,1.99259524,61960.0,61959.0,0.065]
[1722686476657,2.33468624,61960.0,61959.0,0.065]
[1722686476854,2.09259524,61960.0,61959.0,0.065]
[1722686477057,2.09259524,61960.0,61959.0,0.1454]
[1722686477058,2.33468624,61960.0,61959.0,0.1454]
[1722686478694,2.34868624,61960.0,61959.0,0.1454]
[1722686478904,2.36268624,61960.0,61959.0,0.1454]
[1722686479085,2.34868624,61960.0,61959.0,0.1454]
[1722686480450,2.00659524,61960.0,61959.0,0.1454]
[1722686480667,1.88555024,61960.0,61959.0,0.1454]
[1722686480869,1.76450424,61960.0,61959.0,0.1454]
[1722686481088,1.64345924,61960.0,61959.0,0.1454]
[1722686481308,1.76450424,61960.0,61959.0,0.1454]
[1722686481519,1.99259524,61960.0,61959.0,0.1454]
[1722686481720,2.00659524,61960.0,61959.0,0.1454]
[1722686481920,2.02059524,61960.0,61959.0,0.1454]
[1722686482124,1.99259524,61960.0,61959.0,0.1454]
[1722686482563,2.25968624,61960.0,61959.0,0.1454]
[1722686483034,1.77550424,61960.0,61959.0,0.1454]
[1722686483243,2.01709524,61960.0,61959.0,0.1454]
[1722686484297,2.01678423,61960.0,61959.0,0.1454]
[1722686484946,2.25887523,61960.0,61959.0,0.1454]
[1722686485584,2.32353823,61960.0,61959.0,0.1454]
[1722686487240,2.29853823,61960.0,61959.0,0.1454]
[1722686487368,2.32653823,61960.0,61959.0,0.1454]
[1722686487802,2.31253823,61960.0,61959.0,0.1454]
[1722686487999,2.29853823,61960.0,61959.0,0.1454]
[1722686488200,2.32653823,61960.0,61959.0,0.1454]
[1722686488375,2.31253823,61960.0,61959.0,0.1454]
[1722686489106,2.32653823,61960.0,61959.0,0.1454]
[1722686490502,2.31253823,61960.0,61959.0,0.1454]
[1722686490923,2.32653823,61960.0,61959.0,0.1454]
[1722686491143,2.32653823,61960.0,61959.0,0.146313]
[1722686491144,2.55462923,61960.0,61959.0,0.146313]
[1722686491728,2.56862923,61960.0,61959.0,0.146313]
[1722686492134,2.54062923,61960.0,61959.0,0.146313]
[1722686493627,2.56862923,61960.0,61959.0,0.146313]
[1722686494684,2.62863686,61960.0,61959.0,0.081313]
[1722686494903,2.60063686,61960.0,61959.0,0.081313]
[1722686495117,2.61463686,61960.0,61959.0,0.081313]
[1722686495318,2.72863686,61960.0,61959.0,0.081313]
[1722686495571,2.71463686,61960.0,61959.0,0.081313]
[1722686495787,2.70063686,61960.0,61959.0,0.081313]